[Event "Azerbaijan Men Championship 2024"]
[Site "Baku"]
[Date "2024.04.18"]
[Round "8.1"]
[White "Sadikhov, Ulvi"]
[Black "Muradli, Mahammad"]
[Result "0-1"]
[ECO "A36"]
[WhiteElo "2497"]
[BlackElo "2555"]
[Annotator "TA"]
[PlyCount "76"]
[EventDate "2024.04.11"]
[EventType "swiss"]
[EventCountry "AZE"]
[SourceTitle "playchess.com"]
[Source "ChessBase"]
[SourceQuality "1"]
[TimeControl "40/5400+30:1800+30"]

{[%evp 10,76,5,0,0,0,18,8,35,28,25,0,15,9,17,35,21,33,61,52,41,29,72,34,35,37,36,35,25,-14,-8,-12,-12,-10,-6,-10,0,-33,-21,-19,-12,-27,-34,-103,-102,-106,-104,-127,-133,-140,-139,-129,-87,-95,-107,-290,-317,-295,-277,-372,-391,-404,-401,-393,-375,-372,-349,-29990,-29991]} 1. c4 {[%emt 0:00:02]} c5 {[%emt 0:06:56]} 2. g3 {[%emt 0:00:32]} g6 {[%emt 0:00:15]} 3. Bg2 {[%emt 0:00:07]} Bg7 {[%emt 0:00:05]} 4. Nc3 {[%emt 0:00:17]} Nc6 {[%emt 0:00:07]} 5. a3 {[%emt 0:00:17]} b6 {[%emt 0:06:25] [#]} 6. b4 $1 {[%emt 0:03:24] Strongly threatening b5.} Bb7 {[%emt 0:03:40]} 7. bxc5 {[%emt 0:07:16]} Bxc3 {[%emt 0:17:28]} 8. dxc3 {[%emt 0:00:13]} bxc5 {[%emt 0:00:04] The position is equal.} 9. Rb1 {[%emt 0:02:29]} Qc7 {[%emt 0:09:34]} 10. Qd5 {[%emt 0:15:55]} Rc8 {[%emt 0:08:38]} 11. Qxc5 {[%emt 0:05:37]} Nd8 {[%emt 0:00:23][%cal Bc6d8,Bd8b7,Bb7a5][%mdl 32]} 12. Qxc7 {[%emt 0:03:51]} (12. Qxa7 $2 Bxg2 13. Qxc7 Rxc7 $19) 12... Rxc7 {[%emt 0:00:07]} 13. Bxb7 {[%emt 0:00:27]} Rxb7 {[%emt 0:03:08]} 14. Rxb7 {[%emt 0:10:06]} Nxb7 {[%emt 0:00:08]} 15. Nf3 {[%emt 0:00:07]} Nf6 {[%emt 0:02:46]} 16. O-O {[%emt 0:14:43]} Ne4 {[%emt 0:09:55][%cal Of7f6]} 17. Be3 {[%emt 0:07:51]} O-O {[%emt 0:00:19]} 18. Rb1 {[%emt 0:01:48]} Na5 {[%emt 0:03:23]} 19. Bxa7 {[%emt 0:05:39]} Ra8 {[%emt 0:06:11]} 20. Bd4 {[%emt 0:01:56]} d6 {[%emt 0:02:39]} 21. Rb4 {[%emt 0:01:38]} Rc8 {[%emt 0:00:57]} 22. a4 {[%emt 0:07:26][%cal Ba3a4,Ba4a5][%mdl 32]} f6 {[%emt 0:02:56]} 23. Rb5 {[%emt 0:04:03]} Nxc4 {[%emt 0:00:51]} 24. a5 {[%emt 0:00:02] Threatens to win with a6.} Ra8 {[%emt 0:00:54]} ({Don't blunder} 24... e5 $2 25. a6 Na3 (25... exd4 $2 26. a7 $18) 26. Rb3 $18) 25. Rb4 {[%emt 0:02:37]} d5 {[%emt 0:03:01]} ({But not} 25... Nxa5 $6 26. Ra4 $16) 26. Rb7 {[%emt 0:01:57] [#]} (26. Ne1 $15) 26... e5 $1 $17 {[%emt 0:02:34]} ({Worse is} 26... Rxa5 27. Rxe7 Ncd6 28. Rd7 $16) 27. Bb6 {[%emt 0:01:16]} Nxc3 {[%emt 0:01:38] Black is more active.} 28. e3 {[%emt 0:02:17]} Nxa5 {[%emt 0:02:06]} 29. Rd7 {[%emt 0:00:02]} Nc4 {[%emt 0:00:56]} 30. Ba7 {[%emt 0:00:14]} Rc8 {[%emt 0:03:18]} 31. g4 {[%emt 0:00:06]} Nb5 {[%emt 0:03:30] A dynamic duo of knights.} 32. g5 $2 {[%emt 0:00:15] Loses the game.} (32. Rb7 $17 Nbd6 33. Rd7) 32... e4 $19 {[%emt 0:00:02]} 33. Nd4 {[%emt 0:01:07]} Ne5 {[%emt 0:00:02] Hoping for ...Nxd4.} 34. Re7 {[%emt 0:01:19]} Nxd4 {[%emt 0:00:10]} 35. Bxd4 {[%emt 0:00:28]} Nf3+ {[%emt 0:00:02]} 36. Kg2 {[%emt 0:00:07]} fxg5 {[%emt 0:00:25] White must now prevent ...Rc1.} 37. Rg7+ {[%emt 0:00:55]} Kf8 {[%emt 0:00:02] ( -> ...Rc1)} 38. Rd7 $2 {[%emt 0:00:12]} (38. Ra7 $19) 38... Rc1 {[%emt 0:00:36] Weighted Error Value: White=0.34/Black=0.05 (flawless) .  Loses game:     	White=1     	---        Mistake:       	White=2     	---        Inaccurate:     	White=4     	Black=4      OK:         	White=13    	Black=15     Best:        	White=2     	Black=5      Strong:       	---       	Black=1} 0-1

[Event "Azerbaijan Men Championship 2024"]
[Site "Baku"]
[Date "2024.04.18"]
[Round "8.2"]
[White "Suleymanli, Aydin"]
[Black "Rasulov, Vugar"]
[Result "1-0"]
[ECO "C84"]
[WhiteElo "2607"]
[BlackElo "2551"]
[Annotator "TA"]
[PlyCount "69"]
[EventDate "2024.04.11"]
[EventType "swiss"]
[EventCountry "AZE"]
[SourceTitle "playchess.com"]
[Source "ChessBase"]
[SourceQuality "1"]
[TimeControl "40/5400+30:1800+30"]

{[%evp 15,69,8,10,0,25,0,25,20,20,14,21,24,18,0,23,18,20,16,14,0,0,-16,14,20,21,0,0,0,0,0,28,35,75,66,65,60,90,47,71,73,83,0,0,0,0,2,13,0,23,21,41,41,109,125,864,848]} 1. e4 {[%emt 0:02:54]} e5 {[%emt 0:00:28]} 2. Nf3 {[%emt 0:02:16]} Nc6 {[%emt 0:00:18]} 3. Bb5 {[%emt 0:00:05]} a6 {[%emt 0:00:33]} 4. Ba4 {[%emt 0:00:05]} Nf6 {[%emt 0:00:13]} 5. O-O {[%emt 0:00:09]} Be7 {[%emt 0:00:12]} 6. d3 {[%emt 0:00:07]} b5 {[%emt 0:00:21]} 7. Bb3 {[%emt 0:00:04]} d6 {[%emt 0:00:24]} 8. c3 {[%emt 0:00:05]} O-O {[%emt 0:00:18]} 9. h3 {[%emt 0:00:02]} Bb7 {[%emt 0:00:21]} 10. a4 {[%emt 0:00:26]} Nb8 {[%emt 0:03:01]} 11. axb5 {[%emt 0:01:27] White has an edge.} axb5 {[%emt 0:00:02]} 12. Rxa8 {[%emt 0:00:12]} Bxa8 {[%emt 0:00:04]} 13. Na3 {[%emt 0:00:19][%cal Bb1a3,Ba3c2,Bc2e3][%mdl 32]} c6 {[%emt 0:02:00]} 14. Nc2 {[%emt 0:03:29]} Nbd7 {[%emt 0:06:43]} 15. Ne3 {[%emt 0:00:17]} Re8 {[%emt 0:02:11]} 16. Re1 {[%emt 0:17:38]} Bf8 {[%emt 0:04:05]} 17. Nh2 {[%emt 0:04:27]} d5 {[%emt 0:03:01]} 18. Qf3 {[%emt 0:01:35]} Nc5 {[%emt 0:02:36]} 19. Bc2 {[%emt 0:00:15]} b4 {[%emt 0:01:34]} 20. Nhg4 {[%emt 0:09:53]} b3 {[%emt 0:07:34] Threatens to win with ...Nxg4.} 21. Bb1 {[%emt 0:00:11]} dxe4 {[%emt 0:10:26]} 22. Qg3 {[%emt 0:07:01]} Nxg4 {[%emt 0:01:27]} (22... exd3 $2 23. Nh6+ (23. Nxe5 $2 Nce4 $19) 23... Kh8 24. Nxf7+ Kg8 25. Nxd8 $18) 23. Nxg4 {[%emt 0:00:19]} Re6 {[%emt 0:12:04]} (23... exd3 $2 24. Nh6+ (24. Nxe5 $2 d2 $19) 24... Kh8 25. Nxf7+ Kg8 26. Nxd8 $18) 24. dxe4 {[%emt 0:04:50] Nh6+ is the strong threat.} (24. Nxe5 $6 exd3 25. Qf4 Qc7 $15) 24... Qe8 {[%emt 0:06:53]} 25. Rd1 {[%emt 0:06:20]} Bb7 {[%emt 0:10:35]} 26. Bg5 {[%emt 0:09:35]} (26. Nh6+ Kh8 27. Nf5 (27. Rd8 Qe7 $17) 27... Ba6 $11) 26... Nd7 {[%emt 0:00:51]} 27. Bd3 {[%emt 0:02:35][%cal Bb1d3,Bd3e2,Be2d1,Bd1b3][%mdl 32] White has more active pieces.} (27. Nh6+ Kh8 28. Nf5 h6 $14) 27... Rg6 {[%emt 0:03:50] [#]} 28. Qh4 {[%emt 0:03:16]} (28. Qe3 $1 $16) 28... Rd6 $1 $11 {[%emt 0:02:25] White must now prevent ...Ba6.} 29. Be2 {[%emt 0:02:39]} Rxd1+ {[%emt 0:04:52]} 30. Bxd1 {[%emt 0:00:06]} Qe6 $1 {[%emt 0:00:32]} 31. Qg3 {[%emt 0:02:03][%cal Og4h6]} Kh8 {[%emt 0:02:05]} 32. Qd3 $36 {[%emt 0:04:13][%cal Od1b3][%mdl 2048] Bxb3! would now be deadly. White has the initiative.} Nc5 {[%emt 0:01:11]} 33. Qd8 {[%emt 0:00:25]} Kg8 {[%emt 0:01:57] [#] Black is weak on the dark squares} (33... Qc8 $1 $14) 34. Be3 $1 $16 {[%emt 0:02:35]} Na4 {[%emt 0:04:14][%mdl 8192] [#]} (34... Nd7 $16 35. Nh2 Qe7) 35. Bxb3 $1 {[%emt 0:00:51][%mdl 512] Weighted Error Value: White=0.10 (very precise) /Black=0.14 (very precise) .  Loses game:     	---       	Black=1      Mistake:       	White=1     	Black=1      Inaccurate:     	White=1     	Black=4      OK:         	White=7     	Black=6      Strong:       	White=1     	Black=2      Brilliant:      	White=1     	---} 1-0

[Event "Azerbaijan Men Championship 2024"]
[Site "Baku"]
[Date "2024.04.18"]
[Round "8.3"]
[White "Gadimbayli, Abdulla"]
[Black "Babazada, Khazar"]
[Result "1/2-1/2"]
[ECO "C50"]
[WhiteElo "2489"]
[BlackElo "2474"]
[Annotator "TA"]
[PlyCount "46"]
[EventDate "2024.04.11"]
[EventType "swiss"]
[EventCountry "AZE"]
[SourceTitle "playchess.com"]
[Source "ChessBase"]
[SourceQuality "1"]
[TimeControl "40/5400+30:1800+30"]

{[%evp 11,46,13,8,0,0,0,0,0,8,9,10,4,7,4,12,0,11,20,17,8,14,10,9,3,4,3,3,0,44,0,1,0,51,0,6,0,39]} 1. e4 {[%emt 0:00:11]} e5 {[%emt 0:00:06]} 2. Nf3 {[%emt 0:00:18]} Nc6 {[%emt 0:00:06]} 3. Bc4 {[%emt 0:00:35]} Nf6 {[%emt 0:00:21]} 4. d3 {[%emt 0:00:26]} Bc5 {[%emt 0:00:42]} 5. Nc3 {[%emt 0:01:16]} h6 {[%emt 0:00:27]} 6. a3 {[%emt 0:02:14]} a6 {[%emt 0:02:14]} 7. Nd5 {[%emt 0:06:53]} d6 {[%emt 0:00:46]} 8. Be3 {[%emt 0:01:13]} Bxe3 {[%emt 0:01:15]} 9. fxe3 {[%emt 0:01:53]} Nxd5 {[%emt 0:05:48]} 10. Bxd5 {[%emt 0:00:33]} Ne7 {[%emt 0:01:30]} 11. Bb3 {[%emt 0:04:09]} Ng6 {[%emt 0:02:50]} 12. O-O {[%emt 0:08:50][%cal Ob3f7] [#] Bxf7+! would now be deadly.} O-O {[%emt 0:01:42]} 13. Qe1 {[%emt 0:05:48]} Be6 {[%emt 0:03:43]} 14. Bxe6 {[%emt 0:02:57]} fxe6 {[%emt 0:00:04]} 15. Qg3 {[%emt 0:00:53]} Rf6 {[%emt 0:00:37]} 16. Rf2 {[%emt 0:04:37]} Qe7 {[%emt 0:00:58]} 17. h4 {[%emt 0:05:15]} Raf8 {[%emt 0:00:46]} 18. Raf1 {[%emt 0:02:39]} (18. h5 $5 Nh8 $8 19. Rd1 $11) 18... R8f7 {[%emt 0:02:54]} 19. Kh1 {[%emt 0:02:22]} Kh8 {[%emt 0:00:13]} 20. Kg1 {[%emt 0:00:05]} Kg8 {[%emt 0:00:02]} 21. Kh1 {[%emt 0:00:05]} Kh8 {[%emt 0:00:03]} (21... Nf8 $11) 22. Kg1 {[%emt 0:00:04]} Kg8 {[%emt 0:00:03]} 23. Kh1 {[%emt 0:00:05]} Kh8 {[%emt 1:14:50] Not much happened in this game.   Weighted Error Value: White=0.09 (flawless) /Black=0.09 (flawless) .  Mistake:       	---       	Black=1      Inaccurate:     	White=2     	Black=1      OK:         	White=2     	Black=9} 1/2-1/2

[Event "Azerbaijan Men Championship 2024"]
[Site "Baku"]
[Date "2024.04.18"]
[Round "8.4"]
[White "Samadov, Read"]
[Black "Iskandarov, Misratdin"]
[Result "1-0"]
[ECO "E98"]
[WhiteElo "2502"]
[BlackElo "2538"]
[Annotator "TA"]
[PlyCount "79"]
[EventDate "2024.04.11"]
[EventType "swiss"]
[EventCountry "AZE"]
[SourceTitle "playchess.com"]
[Source "ChessBase"]
[SourceQuality "1"]
[TimeControl "40/5400+30:1800+30"]

{[%evp 21,79,63,64,38,53,53,62,60,61,45,48,45,52,41,50,50,177,187,181,169,343,343,354,355,362,410,411,350,520,468,519,501,495,481,550,550,602,661,865,889,781,866,844,837,1218,1533,3749,1445,1609,1074,5181,5014,2004,589,5277,4802,29972,29948,29989,29990]} 1. d4 {[%emt 0:00:03]} d6 {[%emt 0:00:22]} 2. Nf3 {[%emt 0:00:37]} Nf6 {[%emt 0:00:10]} 3. c4 {[%emt 0:00:13]} g6 {[%emt 0:00:07]} 4. Nc3 {[%emt 0:00:19]} Bg7 {[%emt 0:00:18]} 5. e4 {[%emt 0:00:26]} O-O {[%emt 0:00:07]} 6. Be2 {[%emt 0:00:14]} e5 {[%emt 0:00:07]} 7. O-O {[%emt 0:00:13]} Nc6 {[%emt 0:00:05]} 8. d5 {[%emt 0:00:23]} Ne7 {[%emt 0:00:05]} 9. Ne1 {[%emt 0:00:20]} Ne8 {[%emt 0:00:19]} 10. Nd3 {[%emt 0:03:08]} f5 {[%emt 0:00:12]} 11. f3 {[%emt 0:01:17]} f4 {[%emt 0:00:13]} 12. a4 {[%emt 0:09:43]} g5 {[%emt 0:00:16]} 13. a5 {[%emt 0:02:09]} h5 {[%emt 0:04:56]} 14. b4 {[%emt 0:04:37] White is more active. White is slightly better.} Nf6 {[%emt 0:03:25]} 15. c5 {[%emt 0:05:03]} Ng6 {[%emt 0:03:20]} 16. Nf2 {[%emt 0:01:49]} Rf7 {[%emt 0:00:21]} 17. Kh1 {[%emt 0:08:55]} Bf8 {[%emt 0:01:33]} 18. c6 {[%emt 0:07:12]} b5 {[%emt 0:10:29] [#] Loses the game.} 19. axb6 $1 $18 {[%emt 0:05:57]} (19. Bxb5 $6 g4 $16) 19... cxb6 {[%emt 0:00:37]} 20. Rg1 {[%emt 0:02:26]} g4 $2 {[%emt 0:03:20]} (20... Rg7 {might work better.} 21. Bd2 h4) 21. fxg4 {[%emt 0:08:18]} hxg4 {[%emt 0:00:26]} 22. Nxg4 {[%emt 0:01:58]} (22. Bxg4 Nxg4 23. Nxg4 Qh4 $16) 22... Rh7 {[%emt 0:02:29]} 23. g3 {[%emt 0:03:42]} Bg7 {[%emt 0:06:30]} 24. Ra2 {[%emt 0:02:48]} fxg3 {[%emt 0:04:37]} (24... Ne8 {keeps fighting.} 25. Nf2 Qg5) 25. Rxg3 {[%emt 0:03:08]} Nf4 {[%emt 0:00:27]} 26. Nxf6+ {[%emt 0:05:42]} Qxf6 {[%emt 0:00:50] Black is weak on the light squares} 27. Bg4 {[%emt 0:01:06]} Rh4 {[%emt 0:09:19]} 28. Bxc8 {[%emt 0:01:59]} Rxc8 {[%emt 0:00:11]} 29. Qf3 {[%emt 0:02:02]} (29. Rxa7 Rxh2+ 30. Kg1 Rh1+ 31. Kf2 Nd3+ (31... Rxd1 $2 32. Rgxg7+ Qxg7 33. Rxg7+ Kxg7 34. Nxd1 $19) 32. Kg2 Qf2+ (32... Rxd1 33. Nxd1 Nxc1 34. Ne3 $17) 33. Kxh1 Qxg3 $19) 29... Rf8 {[%emt 0:02:04]} 30. Rxa7 {[%emt 0:04:30][%cal Ba2a7,Ba7d7,Bd7d8][%mdl 32]} Rh7 {[%emt 0:03:08]} 31. Bxf4 {[%emt 0:02:11]} exf4 {[%emt 0:00:26]} 32. Rg2 {[%emt 0:01:05]} Qd4 {[%emt 0:05:26]} 33. Ne2 {[%emt 0:01:27]} Qxb4 {[%emt 0:00:27]} 34. Ng1 {[%emt 0:02:39]} (34. Qg4 $142 Qb2 35. c7 (35. Nxf4 Qb1+ 36. Rg1 Qxe4+ 37. Qg2 Rxh2+ 38. Kxh2 Qxf4+ 39. Qg3 Qh6+ 40. Kg2 Qd2+ 41. Kh3 Qh6+ 42. Qh4 Rf3+ 43. Rg3 Rxg3+ 44. Kxg3 Qe3+ 45. Kg2 Qe2+ 46. Qf2 Qg4+ 47. Qg3 Qe2+ 48. Kg1 Qd1+ 49. Kf2 Qc2+ 50. Kf3 Qd3+ 51. Kf4 Qc4+ 52. Ke3 Qc3+ 53. Kf2 Qd2+ 54. Kg1 Qd1+ 55. Kf2 Qd2+ 56. Kg1 Qd1+ $11)) 34... Kh8 {[%emt 0:01:01]} 35. Rd7 {[%emt 0:01:39] [#] Black must now prevent c7.} Qc5 {[%emt 0:04:53]} 36. c7 {[%emt 0:01:52] Threatening mate with Qg4.} Qc1 {[%emt 0:01:32]} 37. h3 {[%emt 0:03:04]} (37. e5 $142 dxe5 38. d6) 37... b5 {[%emt 0:01:36][%cal Bb6b5,Bb5b4][%mdl 32]} 38. Kh2 {[%emt 0:00:53][%cal Of3g4] Intending Qg4! and mate.} ({Not} 38. Rxd6 Qxc7 39. Rc6 Qd8 $18) 38... b4 {[%emt 0:00:06]} 39. Ne2 {[%emt 0:02:40]} ({Worse is} 39. Rxd6 Qxc7 40. Rc6 Qb8 $11) 39... Qa1 {[%emt 0:13:37]} 40. Rd8 {[%emt 0:00:00] Weighted Error Value: White=0.33/Black=0.66.  Mistake:       	---       	Black=3      Inaccurate:     	---       	Black=2      OK:         	White=11    	Black=5} 1-0

[Event "Azerbaijan Men Championship 2024"]
[Site "Baku"]
[Date "2024.04.18"]
[Round "8.5"]
[White "Manafov, Vugar"]
[Black "Hasanzade, Toghrul"]
[Result "1/2-1/2"]
[ECO "A13"]
[WhiteElo "2424"]
[BlackElo "2350"]
[Annotator "TA"]
[PlyCount "109"]
[EventDate "2024.04.11"]
[EventType "swiss"]
[EventCountry "AZE"]
[SourceTitle "playchess.com"]
[Source "ChessBase"]
[SourceQuality "1"]
[TimeControl "40/5400+30:1800+30"]

{[%evp 34,109,23,7,29,50,56,0,24,0,42,47,13,-40,41,-203,-203,-203,-204,-201,-218,-207,-212,-198,-212,-315,-223,-513,-504,-1626,-1484,-1208,-1068,-1171,-393,-29988,-29989,-29991,-210,-2200,-136,-122,-127,-121,-27,-36,-10,-66,-63,-82,-68,-75,-33,-70,-20,-70,-62,-277,-264,-477,-486,-472,-472,-431,0,-384,-366,-527,0,-304,0,-422,0,-287,0,-531,0,-307]} 1. Nf3 {[%emt 0:00:11]} Nf6 {[%emt 0:00:13]} 2. c4 {[%emt 0:00:33]} e6 {[%emt 0:00:49]} 3. b3 {[%emt 0:02:28]} d5 {[%emt 0:00:21]} 4. Bb2 {[%emt 0:00:10]} c5 {[%emt 0:02:26]} 5. e3 {[%emt 0:00:47]} Nc6 {[%emt 0:00:13]} 6. cxd5 {[%emt 0:02:32]} exd5 {[%emt 0:01:26]} 7. Bb5 {[%emt 0:00:36]} Bd6 {[%emt 0:07:18]} 8. O-O {[%emt 0:05:19]} Bg4 {[%emt 0:01:37]} 9. d4 {[%emt 0:01:08]} cxd4 {[%emt 0:06:19]} 10. Bxd4 {[%emt 0:01:52]} O-O {[%emt 0:00:39]} 11. Bxc6 {[%emt 0:02:25]} bxc6 {[%emt 0:00:09]} 12. h3 {[%emt 0:03:10]} Bh5 {[%emt 0:01:34]} 13. Nbd2 {[%emt 0:15:08]} Re8 {[%emt 0:04:08]} 14. Qc2 {[%emt 0:03:15]} Ne4 {[%emt 0:04:53]} 15. Qxc6 {[%emt 0:09:47]} Re6 {[%emt 0:02:50]} 16. Qb5 {[%emt 0:09:02]} Rb8 {[%emt 0:23:01]} 17. Qd3 {[%emt 0:01:12]} Qd7 {[%emt 0:05:03]} 18. Nh4 {[%emt 0:15:35]} Bb4 {[%emt 0:17:46]} 19. Ndf3 $1 {[%emt 0:04:46]} Rbe8 {[%emt 0:04:43]} 20. Nh2 {[%emt 0:05:49]} (20. Rac1 $14) 20... Bd6 {[%emt 0:10:00]} 21. f4 {[%emt 0:02:20]} Ng3 {[%emt 0:01:13]} 22. Rf2 {[%emt 0:00:58]} Re4 {[%emt 0:00:13]} 23. N2f3 {[%emt 0:02:43]} (23. Nf1 Ne2+ 24. Rxe2 Bxe2 $17 (24... Rxd4 $2 25. Qf5 $18)) ({White should play} 23. N4f3 $1 $11) 23... Bxf3 {[%emt 0:02:27]} (23... h6 $15 24. Nd2 Ne2+ 25. Kh1 (25. Rxe2 Bxe2 26. Qc3 Rc8 $17) 25... Rxd4 26. exd4 Nxf4 (26... Bxf4 27. Nf5 $11)) 24. gxf3 $2 {[%emt 0:03:10] [#]} (24. Rxf3 Ne2+ 25. Qxe2 Rxd4 $17) (24. Nxf3 $14 {stays ahead.} Nf5 25. Ng5) 24... Rxd4 $1 $19 {[%emt 0:00:48]} (24... Qxh3 25. Rh2 (25. fxe4 $2 Qh1#) 25... Rxd4 26. Qxd4 $14) 25. Qxd4 {[%emt 0:00:11] [#]} Be7 $1 {[%emt 0:00:17]} (25... Qxh3 26. Rh2 (26. Qxd5 $2 Qh1#) 26... Qc8 27. Re1 $15 (27. Qxd5 Qc3 $11) (27. Qxa7 $2 Bc5 $19)) 26. f5 {[%emt 0:03:09]} Bf6 $1 {[%emt 0:00:31]} (26... Nxf5 27. Nxf5 Qxf5 28. Rd1 $16 (28. Qxa7 Bf6 $11)) 27. Qg4 {[%emt 0:00:53]} Bxa1 {[%emt 0:00:09]} (27... Rxe3 28. Ng2 Ne2+ (28... Nxf5 $2 29. Nxe3 Bxa1 30. Nxf5 $18) 29. Kf1 $11) 28. Qxg3 {[%emt 0:00:09]} Rxe3 {[%emt 0:00:15]} 29. Rc2 {[%emt 0:00:26]} (29. Ng2 $142 Be5 30. Qg4) 29... Re8 {[%emt 0:01:32]} 30. Qc7 $2 {[%emt 0:02:10]} (30. f4) 30... Qb5 $19 {[%emt 0:00:09]} 31. Qc6 {[%emt 0:00:14]} (31. Rc1 $142 Bb2 32. Rb1) 31... Re1+ $19 {[%emt 0:02:07]} 32. Kf2 {[%emt 0:00:02]} Qf1+ {[%emt 0:00:09]} 33. Kg3 {[%emt 0:00:03]} h6 $2 {[%emt 0:01:03]} (33... h5 34. Ng6 fxg6 35. Qxd5+ Kh7 36. fxg6+ Kxg6) 34. Ng2 $2 {[%emt 0:00:57]} (34. Qxd5 $19 Be5+ 35. Kg4) 34... Be5+ {[%emt 0:00:29]} 35. f4 {[%emt 0:00:04]} Bd4 $2 {[%emt 0:00:38]} (35... Bxf4+ {mates} 36. Kg4 h5+ 37. Kh4 Re4 38. Qxd5 Qf3 39. Rc8+ Kh7 40. Rh8+ Kxh8 41. Qd8+ Kh7 42. Qe7 Be5+ (42... Rxe7 {leads to mate.} 43. Nxf4 Qxf4+ 44. Kxh5 g6+ 45. fxg6+ fxg6#) (42... Bg3+ $2 {gets mated.} 43. Kg5 Rxe7 44. h4 Qg4#) 43. Nf4 Qxf4+ 44. Kxh5 Qh6#) 36. Qxd5 $2 {[%emt 0:01:57]} (36. Nxe1 Qxe1+ 37. Kg2) 36... Qd3+ $2 {[%emt 0:00:16]} (36... Rd1 $19 {and Black stays clearly on top. ( -> ...Rd3+)} 37. Qe4 Rd3+ 38. Kg4 Bf6) 37. Qf3 $17 {[%emt 0:00:01]} Qxc2 {[%emt 0:00:24]} 38. Nxe1 {[%emt 0:00:03]} Qxf5 {[%emt 0:00:13]} (38... Qxa2 $17 {Strongly threatening ...Qb1.} 39. b4 Qb1) 39. Qd3 $11 {[%emt 0:00:27]} Qc5 {[%emt 0:00:12]} 40. Nc2 {[%emt 0:00:00]} (40. Nf3 $1 $11 Bf6 41. f5) 40... Bf6 $15 {[%emt 0:00:00]} 41. Ne3 {[%emt 0:00:58]} Qc1 {[%emt 0:03:45]} 42. Kg2 {[%emt 0:01:20]} Qa1 {[%emt 0:02:34]} 43. Qc2 {[%emt 0:01:14]} g6 {[%emt 0:00:28]} ({Black should try} 43... h5 $15) 44. a4 {[%emt 0:00:41]} (44. Ng4 $11) 44... Kg7 {[%emt 0:00:34]} 45. Nd5 $2 {[%emt 0:04:55]} (45. Qd2 $15) 45... Bd4 $19 {[%emt 0:00:18]} 46. Nc7 $2 {[%emt 0:04:32]} (46. b4) 46... Qg1+ $19 {[%emt 0:00:48]} 47. Kf3 {[%emt 0:00:03]} Qe3+ {[%emt 0:00:37]} 48. Kg2 {[%emt 0:00:14]} Qg1+ {[%emt 0:02:02]} 49. Kf3 {[%emt 0:00:04]} Qh1+ {[%emt 0:00:11]} 50. Kg3 {[%emt 0:00:27]} (50. Ke2 {was necessary.} Qxh3 51. Qe4 Qg4+ 52. Kd2) 50... Qg1+ {[%emt 0:25:40]} 51. Kf3 $1 {[%emt 0:25:50]} Qe3+ 52. Kg2 {[%emt 0:00:30]} Qg1+ 53. Kf3 {[%emt 0:00:30]} Qh1+ $2 (53... Qf1+ 54. Ke4 Ba1) 54. Kg3 $1 $19 {[%emt 0:00:30]} Qg1+ {[%emt 0:02:00]} 55. Kf3 $1 {[%emt 0:00:30]} 1/2-1/2